[Event "Titled Tuesday Blitz May 4 2021"]
[White "Gandhi, Shyam"]
[Black "Gabriel, Robert"]
[WhiteFideId "2052008"]
[BlackFideId "4606477"]
[WhiteElo "1951"]
[BlackElo "2203"]
[Result "1-0"]
[Round "09"]
[TimeControl "180+1"]
[Date "2021.05.04"]
[WhiteClock "0:00:41"]
[BlackClock "0:00:07"]

1. c4 {[%clk 0:03:00]}  e6 {[%clk 0:02:58]} 2. e4 {[%clk 0:02:59]}  d5 {[%clk 0:02:56]} 3. cxd5 {[%clk 0:02:59]}  exd5 {[%clk 0:02:55]} 4. exd5 {[%clk 0:02:59]}  Nf6 {[%clk 0:02:54]} 5. Nc3 {[%clk 0:02:58]}  Nxd5 {[%clk 0:02:51]} 6. d4 {[%clk 0:02:56]}  Bb4 {[%clk 0:02:42]} 7. Bd2 {[%clk 0:02:54]}  O-O {[%clk 0:02:39]} 8. Be2 {[%clk 0:02:53]}  Re8 {[%clk 0:02:36]} 9. Nf3 {[%clk 0:02:53]}  Nxc3 {[%clk 0:02:31]} 10. bxc3 {[%clk 0:02:51]}  Bd6 {[%clk 0:02:30]} 11. O-O {[%clk 0:02:49]}  Bf5 {[%clk 0:02:28]} 12. Re1 {[%clk 0:02:36]}  Nd7 {[%clk 0:02:25]} 13. c4 {[%clk 0:02:32]}  c6 {[%clk 0:02:20]} 14. Bc3 {[%clk 0:02:29]}  Qc7 {[%clk 0:02:18]} 15. c5 {[%clk 0:02:26]}  Bf4 {[%clk 0:02:07]} 16. g3 {[%clk 0:02:26]}  Bh6 {[%clk 0:02:05]} 17. Bd2 {[%clk 0:02:26]}  Bxd2 {[%clk 0:02:03]} 18. Qxd2 {[%clk 0:02:26]}  Nf6 {[%clk 0:02:00]} 19. Bd3 {[%clk 0:02:20]}  Bxd3 {[%clk 0:01:59]} 20. Qxd3 {[%clk 0:02:21]}  g6 {[%clk 0:01:46]} 21. Rab1 {[%clk 0:02:09]}  Nd5 {[%clk 0:01:41]} 22. Qd2 {[%clk 0:02:05]}  Kg7 {[%clk 0:01:31]} 23. h4 {[%clk 0:01:54]}  h5 {[%clk 0:01:29]} 24. Qg5 {[%clk 0:01:53]}  f6 {[%clk 0:01:25]} 25. Qd2 {[%clk 0:01:50]}  b5 {[%clk 0:01:20]} 26. cxb6 {[%clk 0:01:43]}  axb6 {[%clk 0:01:18]} 27. Rec1 {[%clk 0:01:42]}  Qd7 {[%clk 0:01:08]} 28. Qc2 {[%clk 0:01:40]}  Rac8 {[%clk 0:01:05]} 29. Nd2 {[%clk 0:01:35]}  b5 {[%clk 0:01:04]} 30. Ne4 {[%clk 0:01:35]}  Qf5 {[%clk 0:00:56]} 31. Nd6 {[%clk 0:01:32]}  Re1+ {[%clk 0:00:55]} 32. Rxe1 {[%clk 0:01:14]}  Qxc2 {[%clk 0:00:54]} 33. Nxc8 {[%clk 0:01:15]}  Qxa2 {[%clk 0:00:49]} 34. Rbc1 {[%clk 0:01:12]}  Qd2 {[%clk 0:00:43]} 35. Rcd1 {[%clk 0:01:03]}  Qc2 {[%clk 0:00:41]} 36. Nd6 {[%clk 0:00:56]}  b4 {[%clk 0:00:38]} 37. Ne8+ {[%clk 0:00:51]}  Kf8 {[%clk 0:00:34]} 38. Rc1 {[%clk 0:00:50]}  Qd3 {[%clk 0:00:28]} 39. Rxc6 {[%clk 0:00:47]}  b3 {[%clk 0:00:22]} 40. Nxf6 {[%clk 0:00:45]}  Nxf6 {[%clk 0:00:20]} 41. Rxf6+ {[%clk 0:00:43]}  Kg7 {[%clk 0:00:20]} 42. Rb6 {[%clk 0:00:44]}  Qd2 {[%clk 0:00:16]} 43. Re7+ {[%clk 0:00:42]}  Kh6 {[%clk 0:00:08]} 44. Rbb7 {[%clk 0:00:42]}  Qd1+ {[%clk 0:00:07]} 45. Kg2 {[%clk 0:00:41]} 1-0


[Site "https://www.chess.com"]

[Event "Titled Tuesday Blitz May 4 2021"]
[White "Golubev, Mikhail"]
[Black "Porter, Ryan W"]
[WhiteFideId "14100983"]
[BlackFideId "2011239"]
[WhiteElo "2374"]
[BlackElo "2399"]
[Result "1-0"]
[Round "09"]
[TimeControl "180+1"]
[Date "2021.05.04"]
[WhiteClock "0:00:20"]
[BlackClock "0:00:24"]

1. e4 {[%clk 0:02:29]}  d6 {[%clk 0:03:00]} 2. d4 {[%clk 0:02:28]}  Nf6 {[%clk 0:02:59]} 3. Nc3 {[%clk 0:02:28]}  g6 {[%clk 0:02:58]} 4. Be3 {[%clk 0:02:26]}  a6 {[%clk 0:02:58]} 5. f3 {[%clk 0:02:23]}  b5 {[%clk 0:02:56]} 6. Bd3 {[%clk 0:02:23]}  Nbd7 {[%clk 0:02:55]} 7. Qd2 {[%clk 0:02:22]}  Bb7 {[%clk 0:02:46]} 8. a4 {[%clk 0:02:21]}  b4 {[%clk 0:02:46]} 9. Nce2 {[%clk 0:02:20]}  c5 {[%clk 0:02:45]} 10. dxc5 {[%clk 0:02:18]}  dxc5 {[%clk 0:02:42]} 11. Nh3 {[%clk 0:02:10]}  Bg7 {[%clk 0:02:40]} 12. Rd1 {[%clk 0:02:04]}  O-O {[%clk 0:02:32]} 13. O-O {[%clk 0:02:02]}  Qc7 {[%clk 0:02:26]} 14. Bc4 {[%clk 0:01:56]}  Nb6 {[%clk 0:02:19]} 15. Bb3 {[%clk 0:01:37]}  a5 {[%clk 0:02:13]} 16. Bf4 {[%clk 0:01:08]}  e5 {[%clk 0:02:11]} 17. Bg5 {[%clk 0:00:57]}  Rfd8 {[%clk 0:01:58]} 18. Qe3 {[%clk 0:00:55]}  c4 {[%clk 0:01:57]} 19. Rxd8+ {[%clk 0:00:43]}  Rxd8 {[%clk 0:01:55]} 20. Ba2 {[%clk 0:00:42]}  Rd7 {[%clk 0:01:50]} 21. Bxf6 {[%clk 0:00:29]}  Bxf6 {[%clk 0:01:49]} 22. f4 {[%clk 0:00:29]}  Nxa4 {[%clk 0:01:32]} 23. f5 {[%clk 0:00:28]}  Be7 {[%clk 0:01:26]} 24. Kh1 {[%clk 0:00:27]}  Qc5 {[%clk 0:01:14]} 25. Qh6 {[%clk 0:00:25]}  Bf8 {[%clk 0:01:15]} 26. Qh4 {[%clk 0:00:25]}  Nb6 {[%clk 0:00:42]} 27. fxg6 {[%clk 0:00:23]}  fxg6 {[%clk 0:00:38]} 28. Ng5 {[%clk 0:00:23]}  Qe3 {[%clk 0:00:28]} 29. Ne6 {[%clk 0:00:21]}  Be7 {[%clk 0:00:24]} 30. Qxe7 {[%clk 0:00:20]} 1-0


[Site "https://www.chess.com"]

[Event "Titled Tuesday Blitz May 4 2021"]
[White "Gritsenko, Nikolai"]
[Black "Budrewicz, Krzysztof"]
[WhiteFideId "14112493"]
[BlackFideId "1127950"]
[WhiteElo "2389"]
[BlackElo "2276"]
[Result "1-0"]
[Round "09"]
[TimeControl "180+1"]
[Date "2021.05.04"]
[WhiteClock "0:00:26"]
[BlackClock "0:00:14"]

1. b3 {[%clk 0:03:00]}  d5 {[%clk 0:02:55]} 2. Bb2 {[%clk 0:03:00]}  c5 {[%clk 0:02:56]} 3. Nf3 {[%clk 0:03:00]}  Nc6 {[%clk 0:02:56]} 4. e3 {[%clk 0:03:00]}  f6 {[%clk 0:02:56]} 5. d4 {[%clk 0:02:59]}  Bg4 {[%clk 0:02:55]} 6. Be2 {[%clk 0:02:56]}  e6 {[%clk 0:02:55]} 7. Nbd2 {[%clk 0:02:55]}  cxd4 {[%clk 0:02:54]} 8. exd4 {[%clk 0:02:51]}  Bd6 {[%clk 0:02:52]} 9. O-O {[%clk 0:02:50]}  Nge7 {[%clk 0:02:52]} 10. c4 {[%clk 0:02:50]}  O-O {[%clk 0:02:51]} 11. Re1 {[%clk 0:02:49]}  Rc8 {[%clk 0:02:44]} 12. a3 {[%clk 0:02:49]}  Re8 {[%clk 0:02:40]} 13. Rc1 {[%clk 0:02:45]}  Bh5 {[%clk 0:02:39]} 14. Nf1 {[%clk 0:02:42]}  a5 {[%clk 0:02:36]} 15. Ne3 {[%clk 0:02:36]}  Bf7 {[%clk 0:02:35]} 16. Bf1 {[%clk 0:02:31]}  Bb8 {[%clk 0:02:35]} 17. g3 {[%clk 0:02:28]}  a4 {[%clk 0:02:28]} 18. cxd5 {[%clk 0:02:19]}  Nxd5 {[%clk 0:02:18]} 19. b4 {[%clk 0:02:12]}  Nxe3 {[%clk 0:02:02]} 20. Rxe3 {[%clk 0:02:09]}  Ne7 {[%clk 0:01:46]} 21. Rxc8 {[%clk 0:02:03]}  Qxc8 {[%clk 0:01:44]} 22. Qxa4 {[%clk 0:02:01]}  Nd5 {[%clk 0:01:44]} 23. Re1 {[%clk 0:01:59]}  Rd8 {[%clk 0:01:43]} 24. Qb3 {[%clk 0:01:52]}  Qd7 {[%clk 0:01:40]} 25. Bh3 {[%clk 0:01:48]}  h5 {[%clk 0:01:39]} 26. Bc1 {[%clk 0:01:43]}  g5 {[%clk 0:01:38]} 27. Bxg5 {[%clk 0:01:42]}  fxg5 {[%clk 0:01:37]} 28. Nxg5 {[%clk 0:01:42]}  Re8 {[%clk 0:01:30]} 29. Qf3 {[%clk 0:01:25]}  Bc7 {[%clk 0:01:22]} 30. Bf1 {[%clk 0:01:13]}  Bd8 {[%clk 0:01:20]} 31. Ne4 {[%clk 0:01:09]}  Bg6 {[%clk 0:01:16]} 32. Nc5 {[%clk 0:01:08]}  Qf7 {[%clk 0:01:16]} 33. Qe2 {[%clk 0:01:06]}  Bf6 {[%clk 0:01:09]} 34. Bh3 {[%clk 0:01:04]}  Bxd4 {[%clk 0:01:02]} 35. Bxe6 {[%clk 0:01:01]}  Rxe6 {[%clk 0:01:02]} 36. Nxe6 {[%clk 0:01:00]}  Nc3 {[%clk 0:00:51]} 37. Qd2 {[%clk 0:00:53]}  Bb6 {[%clk 0:00:36]} 38. Nc5 {[%clk 0:00:49]}  Bxc5 {[%clk 0:00:32]} 39. bxc5 {[%clk 0:00:48]}  Ne4 {[%clk 0:00:32]} 40. Qe3 {[%clk 0:00:39]}  Nf6 {[%clk 0:00:30]} 41. f3 {[%clk 0:00:38]}  Nd5 {[%clk 0:00:26]} 42. Qf2 {[%clk 0:00:37]}  Kg7 {[%clk 0:00:25]} 43. a4 {[%clk 0:00:36]}  Nb4 {[%clk 0:00:23]} 44. Qd4+ {[%clk 0:00:34]}  Kh6 {[%clk 0:00:16]} 45. Qxb4 {[%clk 0:00:33]}  Kh7 {[%clk 0:00:15]} 46. Qf4 {[%clk 0:00:30]}  Qa2 {[%clk 0:00:14]} 47. Re7+ {[%clk 0:00:27]}  Kg8 {[%clk 0:00:14]} 48. Qb8+ {[%clk 0:00:26]} 1-0


[Site "https://www.chess.com"]

[Event "Titled Tuesday Blitz May 4 2021"]
[White "Haessel, Dale R."]
[Black "Wisniowski, Natalie"]
[WhiteFideId "2012618"]
[BlackFideId "30929261"]
[WhiteElo "2167"]
[BlackElo "1702"]
[Result "0-1"]
[Round "09"]
[TimeControl "180+1"]
[Date "2021.05.04"]
[WhiteClock "0:00:02"]
[BlackClock "0:00:25"]

1. d4 {[%clk 0:02:39]}  d5 {[%clk 0:02:59]} 2. c4 {[%clk 0:02:35]}  c6 {[%clk 0:02:58]} 3. Nc3 {[%clk 0:02:34]}  Nf6 {[%clk 0:02:58]} 4. e3 {[%clk 0:02:34]}  Bf5 {[%clk 0:02:57]} 5. Qb3 {[%clk 0:02:29]}  Qd7 {[%clk 0:02:55]} 6. Nf3 {[%clk 0:02:25]}  e6 {[%clk 0:02:55]} 7. Ne5 {[%clk 0:02:17]}  Qc7 {[%clk 0:02:53]} 8. Bd2 {[%clk 0:02:09]}  Bd6 {[%clk 0:02:52]} 9. f4 {[%clk 0:02:06]}  O-O {[%clk 0:02:49]} 10. Rc1 {[%clk 0:02:05]}  Ne4 {[%clk 0:02:43]} 11. c5 {[%clk 0:01:24]}  Be7 {[%clk 0:02:38]} 12. g4 {[%clk 0:01:13]}  Bh4+ {[%clk 0:02:30]} 13. Ke2 {[%clk 0:01:11]}  Bg6 {[%clk 0:02:26]} 14. Nxg6 {[%clk 0:01:06]}  fxg6 {[%clk 0:02:23]} 15. Nxe4 {[%clk 0:01:05]}  dxe4 {[%clk 0:02:23]} 16. Qxe6+ {[%clk 0:00:57]}  Kh8 {[%clk 0:02:22]} 17. Qxe4 {[%clk 0:00:53]}  Nd7 {[%clk 0:02:15]} 18. g5 {[%clk 0:00:48]}  Rae8 {[%clk 0:02:07]} 19. Qg2 {[%clk 0:00:32]}  Qxf4 {[%clk 0:02:00]} 20. Kd3 {[%clk 0:00:25]}  Qxg5 {[%clk 0:01:53]} 21. Qxg5 {[%clk 0:00:24]}  Bxg5 {[%clk 0:01:53]} 22. Bh3 {[%clk 0:00:20]}  Nf6 {[%clk 0:01:51]} 23. Rhf1 {[%clk 0:00:19]}  Nd5 {[%clk 0:01:50]} 24. Rxf8+ {[%clk 0:00:18]}  Rxf8 {[%clk 0:01:49]} 25. Rf1 {[%clk 0:00:18]}  Rxf1 {[%clk 0:01:32]} 26. Bxf1 {[%clk 0:00:17]}  Kg8 {[%clk 0:01:31]} 27. Bh3 {[%clk 0:00:17]}  Kf7 {[%clk 0:01:30]} 28. Bc8 {[%clk 0:00:17]}  b6 {[%clk 0:01:29]} 29. Bb7 {[%clk 0:00:16]}  Ne7 {[%clk 0:01:27]} 30. cxb6 {[%clk 0:00:14]}  axb6 {[%clk 0:01:27]} 31. a4 {[%clk 0:00:14]}  Bf6 {[%clk 0:01:25]} 32. b4 {[%clk 0:00:13]}  g5 {[%clk 0:01:20]} 33. a5 {[%clk 0:00:13]}  bxa5 {[%clk 0:01:14]} 34. bxa5 {[%clk 0:00:14]}  Nd5 {[%clk 0:01:14]} 35. a6 {[%clk 0:00:12]}  Nc7 {[%clk 0:00:59]} 36. Ba5 {[%clk 0:00:10]}  Nb5 {[%clk 0:00:53]} 37. Bxc6 {[%clk 0:00:08]}  Na7 {[%clk 0:00:51]} 38. Bd5+ {[%clk 0:00:08]}  Ke7 {[%clk 0:00:49]} 39. Bb6 {[%clk 0:00:08]}  Nc8 {[%clk 0:00:49]} 40. a7 {[%clk 0:00:06]}  Nxb6 {[%clk 0:00:48]} 41. a8=Q {[%clk 0:00:04]}  Nxa8 {[%clk 0:00:48]} 42. Bxa8 {[%clk 0:00:05]}  Kd6 {[%clk 0:00:41]} 43. e4 {[%clk 0:00:05]}  Bd8 {[%clk 0:00:40]} 44. Bd5 {[%clk 0:00:04]}  h5 {[%clk 0:00:38]} 45. Bf7 {[%clk 0:00:03]}  h4 {[%clk 0:00:36]} 46. e5+ {[%clk 0:00:03]}  Ke7 {[%clk 0:00:36]} 47. Bh5 {[%clk 0:00:03]}  Bc7 {[%clk 0:00:31]} 48. Bg4 {[%clk 0:00:02]}  g6 {[%clk 0:00:30]} 49. h3 {[%clk 0:00:02]}  Bb8 {[%clk 0:00:29]} 50. Ke4 {[%clk 0:00:02]}  Ba7 {[%clk 0:00:27]} 51. d5 {[%clk 0:00:02]}  Bc5 {[%clk 0:00:25]} 0-1


[Site "https://www.chess.com"]

[Event "Titled Tuesday Blitz May 4 2021"]
[White "Havanecz, Bianka"]
[Black "Melkevik, Johannes"]
[WhiteFideId "704814"]
[BlackFideId "1501836"]
[WhiteElo "2318"]
[BlackElo "1727"]
[Result "1-0"]
[Round "09"]
[TimeControl "180+1"]
[Date "2021.05.04"]
[WhiteClock "0:01:41"]
[BlackClock "0:00:17"]

1. d4 {[%clk 0:03:00]}  Nf6 {[%clk 0:02:58]} 2. c4 {[%clk 0:02:58]}  e6 {[%clk 0:02:59]} 3. Nc3 {[%clk 0:02:57]}  Bb4 {[%clk 0:02:58]} 4. Qc2 {[%clk 0:02:56]}  O-O {[%clk 0:02:57]} 5. Nf3 {[%clk 0:02:54]}  b6 {[%clk 0:02:51]} 6. e4 {[%clk 0:02:53]}  d5 {[%clk 0:02:48]} 7. cxd5 {[%clk 0:02:52]}  exd5 {[%clk 0:02:48]} 8. e5 {[%clk 0:02:53]}  Ne4 {[%clk 0:02:47]} 9. Bd3 {[%clk 0:02:53]}  c5 {[%clk 0:02:44]} 10. O-O {[%clk 0:02:48]}  cxd4 {[%clk 0:02:31]} 11. Nxe4 {[%clk 0:02:44]}  dxe4 {[%clk 0:02:18]} 12. Bxe4 {[%clk 0:02:44]}  Ba6 {[%clk 0:02:05]} 13. Rd1 {[%clk 0:02:29]}  Nd7 {[%clk 0:02:00]} 14. Bxa8 {[%clk 0:02:19]}  Qxa8 {[%clk 0:02:01]} 15. Rxd4 {[%clk 0:02:19]}  Bc5 {[%clk 0:01:29]} 16. Rxd7 {[%clk 0:02:17]}  Bb5 {[%clk 0:00:51]} 17. Rd1 {[%clk 0:02:10]}  Rc8 {[%clk 0:00:40]} 18. Qf5 {[%clk 0:02:05]}  Qc6 {[%clk 0:00:34]} 19. Ng5 {[%clk 0:01:53]}  h6 {[%clk 0:00:18]} 20. Qxf7+ {[%clk 0:01:49]}  Kh8 {[%clk 0:00:18]} 21. Ne6 {[%clk 0:01:43]}  Be2 {[%clk 0:00:17]} 22. Qxg7# {[%clk 0:01:41]} 1-0


[Site "https://www.chess.com"]

[Event "Titled Tuesday Blitz May 4 2021"]
[White "Hernandez Jimenez, Alexander Andres"]
[Black "Provotorov, Ivan"]
[WhiteFideId "3900452"]
[BlackFideId "4154657"]
[WhiteElo "2151"]
[BlackElo "2244"]
[Result "0-1"]
[Round "09"]
[TimeControl "180+1"]
[Date "2021.05.04"]
[WhiteClock "0:00:01"]
[BlackClock "0:00:19"]

1. e4 {[%clk 0:03:00]}  g6 {[%clk 0:02:55]} 2. d4 {[%clk 0:03:00]}  Bg7 {[%clk 0:02:55]} 3. Nc3 {[%clk 0:03:00]}  d6 {[%clk 0:02:54]} 4. Nf3 {[%clk 0:03:00]}  a6 {[%clk 0:02:54]} 5. a4 {[%clk 0:02:59]}  Nd7 {[%clk 0:02:40]} 6. Bc4 {[%clk 0:02:57]}  e6 {[%clk 0:02:39]} 7. O-O {[%clk 0:02:55]}  Ne7 {[%clk 0:02:37]} 8. Re1 {[%clk 0:02:55]}  O-O {[%clk 0:02:37]} 9. e5 {[%clk 0:02:44]}  d5 {[%clk 0:02:34]} 10. Bf1 {[%clk 0:02:40]}  c5 {[%clk 0:02:34]} 11. Be3 {[%clk 0:02:28]}  cxd4 {[%clk 0:02:26]} 12. Bxd4 {[%clk 0:02:27]}  Nc6 {[%clk 0:02:26]} 13. h4 {[%clk 0:01:54]}  h6 {[%clk 0:02:13]} 14. h5 {[%clk 0:01:51]}  g5 {[%clk 0:02:12]} 15. a5 {[%clk 0:01:38]}  g4 {[%clk 0:02:07]} 16. Nh2 {[%clk 0:01:36]}  g3 {[%clk 0:01:34]} 17. Ng4 {[%clk 0:01:28]}  Nxd4 {[%clk 0:01:22]} 18. Qxd4 {[%clk 0:01:25]}  gxf2+ {[%clk 0:01:22]} 19. Qxf2 {[%clk 0:01:19]}  Qg5 {[%clk 0:01:22]} 20. Qe2 {[%clk 0:00:54]}  Qxh5 {[%clk 0:01:07]} 21. Nf6+ {[%clk 0:00:36]}  Nxf6 {[%clk 0:01:06]} 22. exf6 {[%clk 0:00:36]}  Qxe2 {[%clk 0:01:05]} 23. fxg7 {[%clk 0:00:34]}  Qg4 {[%clk 0:00:32]} 24. gxf8=Q+ {[%clk 0:00:30]}  Kxf8 {[%clk 0:00:32]} 25. Ra4 {[%clk 0:00:25]}  Qg3 {[%clk 0:00:30]} 26. Rd1 {[%clk 0:00:20]}  Bd7 {[%clk 0:00:29]} 27. Rd3 {[%clk 0:00:18]}  Qg5 {[%clk 0:00:24]} 28. Rb4 {[%clk 0:00:16]}  Bc6 {[%clk 0:00:24]} 29. Ne2 {[%clk 0:00:14]}  e5 {[%clk 0:00:22]} 30. Rg3 {[%clk 0:00:13]}  Qh5 {[%clk 0:00:22]} 31. Rbg4 {[%clk 0:00:10]}  Ke7 {[%clk 0:00:21]} 32. Rg7 {[%clk 0:00:07]}  d4 {[%clk 0:00:20]} 33. Nc1 {[%clk 0:00:05]}  Qf5 {[%clk 0:00:20]} 34. Nd3 {[%clk 0:00:04]}  e4 {[%clk 0:00:20]} 35. Nf2 {[%clk 0:00:03]}  e3 {[%clk 0:00:20]} 36. Nh3 {[%clk 0:00:01]}  Qf6 {[%clk 0:00:19]} 0-1


[Site "https://www.chess.com"]

[Event "Titled Tuesday Blitz May 4 2021"]
[White "Hess, Robert"]
[Black "Indjic, Aleksandar"]
[WhiteFideId "2022036"]
[BlackFideId "911925"]
[WhiteElo "2557"]
[BlackElo "2591"]
[Result "0-1"]
[Round "09"]
[TimeControl "180+1"]
[Date "2021.05.04"]
[WhiteClock "0:00:01"]
[BlackClock "0:01:12"]

1. d4 {[%clk 0:03:00]}  Nf6 {[%clk 0:02:59]} 2. c4 {[%clk 0:03:01]}  c5 {[%clk 0:02:59]} 3. d5 {[%clk 0:03:01]}  e6 {[%clk 0:03:00]} 4. Nc3 {[%clk 0:03:00]}  exd5 {[%clk 0:03:00]} 5. cxd5 {[%clk 0:03:00]}  d6 {[%clk 0:03:01]} 6. Nf3 {[%clk 0:03:00]}  g6 {[%clk 0:03:01]} 7. h3 {[%clk 0:03:00]}  Bg7 {[%clk 0:03:00]} 8. Bf4 {[%clk 0:03:01]}  O-O {[%clk 0:03:00]} 9. Nd2 {[%clk 0:02:57]}  Nh5 {[%clk 0:02:57]} 10. Bh2 {[%clk 0:02:56]}  f5 {[%clk 0:02:58]} 11. e3 {[%clk 0:02:55]}  f4 {[%clk 0:02:57]} 12. e4 {[%clk 0:02:50]}  Nd7 {[%clk 0:02:48]} 13. Be2 {[%clk 0:02:43]}  Ne5 {[%clk 0:02:48]} 14. O-O {[%clk 0:02:39]}  Qg5 {[%clk 0:02:45]} 15. Kh1 {[%clk 0:02:14]}  Qh4 {[%clk 0:02:42]} 16. Nf3 {[%clk 0:01:59]}  Nxf3 {[%clk 0:02:40]} 17. Bxf3 {[%clk 0:02:00]}  Be5 {[%clk 0:02:39]} 18. Rc1 {[%clk 0:01:45]}  Nf6 {[%clk 0:02:34]} 19. b4 {[%clk 0:01:35]}  b6 {[%clk 0:02:31]} 20. bxc5 {[%clk 0:01:32]}  bxc5 {[%clk 0:02:32]} 21. Nb5 {[%clk 0:01:30]}  Rf7 {[%clk 0:02:28]} 22. Na3 {[%clk 0:01:22]}  g5 {[%clk 0:02:06]} 23. Nc4 {[%clk 0:01:06]}  g4 {[%clk 0:02:06]} 24. Nxe5 {[%clk 0:00:55]}  dxe5 {[%clk 0:02:05]} 25. hxg4 {[%clk 0:00:51]}  Bxg4 {[%clk 0:01:41]} 26. Rxc5 {[%clk 0:00:15]}  Rg7 {[%clk 0:01:41]} 27. g3 {[%clk 0:00:06]}  Qh5 {[%clk 0:01:40]} 28. Rc3 {[%clk 0:00:05]}  Rg6 {[%clk 0:01:22]} 29. Rg1 {[%clk 0:00:03]}  Nxe4 {[%clk 0:01:22]} 30. Bxg4 {[%clk 0:00:01]}  Nxf2+ {[%clk 0:01:21]} 31. Kg2 {[%clk 0:00:01]}  Nxg4 {[%clk 0:01:21]} 32. Rh1 {[%clk 0:00:02]}  Qf5 {[%clk 0:01:16]} 33. Bg1 {[%clk 0:00:01]}  Rf8 {[%clk 0:01:12]} 0-1


[Site "https://www.chess.com"]

[Event "Titled Tuesday Blitz May 4 2021"]
[White "Iljushina, Olga"]
[Black "Cuevas, Alex"]
[WhiteFideId "4152280"]
[BlackFideId "114260"]
[WhiteElo "1967"]
[BlackElo "2289"]
[Result "0-1"]
[Round "09"]
[TimeControl "180+1"]
[Date "2021.05.04"]
[WhiteClock "0:00:25"]
[BlackClock "0:01:14"]

1. d4 {[%clk 0:03:00]}  Nf6 {[%clk 0:02:48]} 2. c4 {[%clk 0:03:00]}  e6 {[%clk 0:02:47]} 3. g3 {[%clk 0:02:57]}  d5 {[%clk 0:02:46]} 4. Bg2 {[%clk 0:02:55]}  Be7 {[%clk 0:02:46]} 5. Nf3 {[%clk 0:02:55]}  O-O {[%clk 0:02:46]} 6. O-O {[%clk 0:02:54]}  dxc4 {[%clk 0:02:46]} 7. e3 {[%clk 0:02:54]}  Nbd7 {[%clk 0:02:41]} 8. Qe2 {[%clk 0:02:52]}  Nb6 {[%clk 0:02:40]} 9. Rd1 {[%clk 0:02:51]}  c6 {[%clk 0:02:15]} 10. b3 {[%clk 0:02:51]}  cxb3 {[%clk 0:02:11]} 11. axb3 {[%clk 0:02:51]}  Qd5 {[%clk 0:02:09]} 12. Nbd2 {[%clk 0:02:33]}  Qb5 {[%clk 0:02:04]} 13. Qxb5 {[%clk 0:02:11]}  cxb5 {[%clk 0:02:05]} 14. Ne5 {[%clk 0:02:08]}  Nfd5 {[%clk 0:02:02]} 15. Bb2 {[%clk 0:02:07]}  a5 {[%clk 0:02:00]} 16. e4 {[%clk 0:01:35]}  Nb4 {[%clk 0:02:00]} 17. Ba3 {[%clk 0:01:31]}  Re8 {[%clk 0:01:57]} 18. Rdc1 {[%clk 0:01:22]}  f6 {[%clk 0:01:55]} 19. Nef3 {[%clk 0:01:19]}  Bd7 {[%clk 0:01:49]} 20. Rc7 {[%clk 0:01:18]}  Bc6 {[%clk 0:01:49]} 21. Rxe7 {[%clk 0:01:06]}  Rxe7 {[%clk 0:01:47]} 22. d5 {[%clk 0:01:07]}  exd5 {[%clk 0:01:45]} 23. Nd4 {[%clk 0:01:02]}  dxe4 {[%clk 0:01:35]} 24. Nxc6 {[%clk 0:01:02]}  bxc6 {[%clk 0:01:33]} 25. Bxe4 {[%clk 0:01:01]}  Rd8 {[%clk 0:01:23]} 26. Bxb4 {[%clk 0:00:29]}  axb4 {[%clk 0:01:21]} 27. Bxc6 {[%clk 0:00:28]}  Rxd2 {[%clk 0:01:20]} 28. Ra6 {[%clk 0:00:28]}  Nd5 {[%clk 0:01:16]} 29. Ra8+ {[%clk 0:00:27]}  Kf7 {[%clk 0:01:16]} 30. Rd8 {[%clk 0:00:27]}  Rd1+ {[%clk 0:01:14]} 31. Kg2 {[%clk 0:00:24]}  Ne3+ {[%clk 0:01:14]} 32. fxe3 {[%clk 0:00:24]}  Rxd8 {[%clk 0:01:14]} 33. Bxb5 {[%clk 0:00:25]} 0-1


[Site "https://www.chess.com"]

[Event "Titled Tuesday Blitz May 4 2021"]
[White "Iskusnyh, Sergei"]
[Black "Srihari L R"]
[WhiteFideId "4120027"]
[BlackFideId "46617116"]
[WhiteElo "2492"]
[BlackElo "2121"]
[Result "1/2-1/2"]
[Round "09"]
[TimeControl "180+1"]
[Date "2021.05.04"]
[WhiteClock "0:00:07"]
[BlackClock "0:00:04"]

1. d4 {[%clk 0:03:00]}  d5 {[%clk 0:02:59]} 2. c4 {[%clk 0:03:00]}  e6 {[%clk 0:02:58]} 3. Nf3 {[%clk 0:02:59]}  c5 {[%clk 0:02:55]} 4. cxd5 {[%clk 0:02:58]}  exd5 {[%clk 0:02:50]} 5. g3 {[%clk 0:02:58]}  Nc6 {[%clk 0:02:50]} 6. Bg2 {[%clk 0:02:58]}  Nf6 {[%clk 0:02:47]} 7. O-O {[%clk 0:02:57]}  Be7 {[%clk 0:02:46]} 8. dxc5 {[%clk 0:02:56]}  Bxc5 {[%clk 0:02:46]} 9. a3 {[%clk 0:02:56]}  O-O {[%clk 0:02:41]} 10. b4 {[%clk 0:02:55]}  Bb6 {[%clk 0:02:34]} 11. Nc3 {[%clk 0:02:49]}  Be6 {[%clk 0:02:33]} 12. Bb2 {[%clk 0:02:48]}  Re8 {[%clk 0:02:21]} 13. Na4 {[%clk 0:02:44]}  Ne4 {[%clk 0:02:09]} 14. Nxb6 {[%clk 0:02:35]}  axb6 {[%clk 0:02:00]} 15. e3 {[%clk 0:02:28]}  Nd6 {[%clk 0:01:51]} 16. Ne5 {[%clk 0:01:47]}  Nxe5 {[%clk 0:01:37]} 17. Bxe5 {[%clk 0:01:45]}  Nc4 {[%clk 0:01:37]} 18. Bd4 {[%clk 0:01:41]}  Nxa3 {[%clk 0:01:20]} 19. Qh5 {[%clk 0:01:36]}  f6 {[%clk 0:00:30]} 20. Rfd1 {[%clk 0:01:07]}  Bf7 {[%clk 0:00:26]} 21. Qg4 {[%clk 0:01:04]}  Qd6 {[%clk 0:00:26]} 22. Bb2 {[%clk 0:00:52]}  Nb5 {[%clk 0:00:18]} 23. Rxa8 {[%clk 0:00:49]}  Rxa8 {[%clk 0:00:18]} 24. h4 {[%clk 0:00:47]}  h5 {[%clk 0:00:17]} 25. Qf5 {[%clk 0:00:45]}  Qxb4 {[%clk 0:00:16]} 26. Bxd5 {[%clk 0:00:29]}  Nd6 {[%clk 0:00:12]} 27. Bxf7+ {[%clk 0:00:26]}  Nxf7 {[%clk 0:00:12]} 28. Bd4 {[%clk 0:00:24]}  Qa5 {[%clk 0:00:11]} 29. Qe6 {[%clk 0:00:23]}  Qa2 {[%clk 0:00:10]} 30. Qxb6 {[%clk 0:00:21]}  Qa6 {[%clk 0:00:10]} 31. Qc7 {[%clk 0:00:20]}  b5 {[%clk 0:00:10]} 32. Ra1 {[%clk 0:00:19]}  Qc8 {[%clk 0:00:08]} 33. Rxa8 {[%clk 0:00:19]}  Qxa8 {[%clk 0:00:08]} 34. Qb6 {[%clk 0:00:18]}  Qd5 {[%clk 0:00:08]} 35. Qb8+ {[%clk 0:00:17]}  Kh7 {[%clk 0:00:08]} 36. Kh2 {[%clk 0:00:17]}  Nd6 {[%clk 0:00:08]} 37. Qd8 {[%clk 0:00:14]}  Qe6 {[%clk 0:00:08]} 38. Qb6 {[%clk 0:00:13]}  Qd5 {[%clk 0:00:07]} 39. Kg1 {[%clk 0:00:12]}  Ne4 {[%clk 0:00:06]} 40. Qa6 {[%clk 0:00:08]}  Nd2 {[%clk 0:00:06]} 41. Qa1 {[%clk 0:00:06]}  Nf3+ {[%clk 0:00:06]} 42. Kf1 {[%clk 0:00:07]}  Ne5 {[%clk 0:00:05]} 43. Bxe5 {[%clk 0:00:06]}  fxe5 {[%clk 0:00:05]} 44. Qb1+ {[%clk 0:00:06]}  e4 {[%clk 0:00:05]} 45. Kg2 {[%clk 0:00:05]}  Qc4 {[%clk 0:00:04]} 46. Qd1 {[%clk 0:00:05]}  b4 {[%clk 0:00:04]} 47. Qxh5+ {[%clk 0:00:05]}  Kg8 {[%clk 0:00:04]} 48. Qe8+ {[%clk 0:00:05]}  Kh7 {[%clk 0:00:04]} 49. Qh5+ {[%clk 0:00:06]}  Kg8 {[%clk 0:00:04]} 50. Qe8+ {[%clk 0:00:07]}  Kh7 {[%clk 0:00:04]} 51. Qh5+ {[%clk 0:00:07]} 1/2-1/2


[Site "https://www.chess.com"]